fUSD/lending_fUSD_20250115
["ID","MTS","AMOUNT","RATE_DAILY","PERIOD"]
[349089817,1736964709628,-502.74,0.00043039,4]
[349089818,1736964709638,-502.95,0.00043039,4]
[349089819,1736964709648,-2309.27,0.00043039,4]
[349089820,1736964709658,-2309.27,0.00043039,4]
[349089821,1736964709669,-2309.27,0.00043039,4]
[349089822,1736964709678,-2309.27,0.00043039,4]
[349089823,1736964709688,-2309.27,0.00043039,4]
[349089824,1736964709698,-2309.27,0.00043039,4]
[349089825,1736964709708,-2309.27,0.00043039,4]
[349089826,1736964709718,-2309.27,0.00043039,4]
[349089827,1736964709727,-2309.27,0.00043039,4]
[349089828,1736964709737,-2309.27,0.00043039,4]
[349089829,1736964709746,-2309.40030629,0.00043039,4]
[349089830,1736964709756,-500.0,0.00043039,4]
[349089831,1736964709765,-500.0,0.00043039,4]
[349089832,1736964709775,-500.0,0.00043039,4]
[349089833,1736964709784,-500.0,0.00043039,4]
[349089834,1736964709794,-647.84,0.00043039,4]
[349089835,1736964709804,-500.0,0.00043039,4]
[349089836,1736964709813,-500.0,0.00043039,4]
[349089837,1736964709823,-500.0,0.00043039,4]
[349089838,1736964709832,-500.0,0.00043039,4]
[349089839,1736964709842,-500.0,0.00043039,4]
[349089840,1736964709851,-2275.47,0.00043039,4]
[349089841,1736964709861,-2275.47,0.00043039,4]
[349089842,1736964709871,-2275.47,0.00043039,4]
[349089843,1736964709881,-2275.47,0.00043039,4]
[349089844,1736964709891,-2275.47,0.00043039,4]
[349089845,1736964709901,-2275.47,0.00043039,4]
[349089846,1736964709910,-2275.47,0.00043039,4]
[349089847,1736964709920,-2275.47,0.00043039,4]
[349089848,1736964709930,-2275.47,0.00043039,4]
[349089849,1736964709939,-2275.47,0.00043039,4]
[349089850,1736964709949,-2275.55523623,0.00043039,4]
[349089851,1736964709959,-595.89524275,0.00043039,4]
[349089852,1736964709968,-558.61244514,0.00043039,4]
[349089853,1736964709978,-500.0,0.00043039,4]
[349089854,1736964709988,-500.0,0.00043039,4]
[349089855,1736964709997,-500.0,0.00043039,4]
[349089856,1736964710007,-500.0,0.00043039,4]
[349089857,1736964710016,-500.0,0.00043039,4]
[349089858,1736964710026,-466.84110468,0.00043039,4]
[349089859,1736964710035,-151.0,0.00043039,14]
[349089860,1736964710046,-500.0,0.00043039,4]
[349089861,1736964710055,-305.82,0.00043039,4]
[349089862,1736964710065,-562.97,0.00043039,4]
[349089863,1736964710074,-562.97,0.00043039,4]
[349089864,1736964710083,-562.97,0.00043039,4]
[349089865,1736964710093,-562.97,0.00043039,4]
[349089866,1736964710102,-562.97,0.00043039,4]
[349089867,1736964710111,-563.1,0.00043039,4]
[349089868,1736964710121,-745.32,0.00043039,4]
[349089869,1736964710131,-745.32,0.00043039,4]
[349089870,1736964710141,-745.32,0.00043039,4]
[349089871,1736964710150,-745.32,0.00043039,4]
[349089872,1736964710159,-745.32,0.00043039,4]
[349089873,1736964710169,-745.45,0.00043039,4]
[349089874,1736964710180,-500.0,0.00043039,4]
[349089875,1736964710190,-186.0,0.00043039,4]
[349089876,1736964710199,-184.45,0.00043039,4]
[349089877,1736964710209,-500.0,0.00043039,4]
[349089878,1736964710219,-500.0,0.00043039,4]
[349089879,1736964710229,-377.16,0.00043039,4]
[349089880,1736964710239,-500.0,0.00043039,4]
[349089881,1736964710248,-500.0,0.00043039,4]
[349089882,1736964710257,-287.85,0.00043039,4]
[349089883,1736964710267,-233.62,0.00043039,4]
[349089884,1736964710276,-1321.18,0.00043039,4]
[349089885,1736964710286,-1321.18,0.00043039,4]
[349089886,1736964710294,-1321.18,0.00043039,4]
[349089887,1736964710303,-1321.18,0.00043039,4]
[349089888,1736964710312,-1321.18,0.00043039,4]
[349089889,1736964710321,-1321.22232966,0.00043039,4]
[349089890,1736964710330,-245.0,0.00043039,14]
[349089891,1736964710339,-2360.74,0.00043039,4]
[349089892,1736964710348,-2360.74,0.00043039,4]
[349089893,1736964710357,-2360.74,0.00043039,4]
[349089894,1736964710366,-963049.53509242,0.0004304,31]
[349089895,1736964710497,-823.375,0.0004304,31]
[349089896,1736964710578,-121340.94837081,0.0004304,31]
[349089897,1736964710598,-150.0,0.00042273,30]
[349089898,1736964710607,-1338.63,0.00043039,4]
[349089899,1736964710618,-1022.11,0.00043039,4]
[349089900,1736964710627,-218.10751765,0.0004304,31]
[349089901,1736964710639,-6108.88453523,0.0004304,31]
[349089902,1736964710804,-150.0,0.00042727,117]
[349089903,1736964710814,-500.0,0.00043013,4]
[349089904,1736964710823,-83.94899998,0.00043013,4]
[349089905,1736964710835,-416.05100002,0.00043013,4]
[349089906,1736964710844,-500.0,0.00043013,4]
[349089907,1736964710853,-201.2097987,0.00043013,4]
[349089908,1736964710864,-298.7902013,0.00043013,4]
[349089909,1736964710873,-500.0,0.00043013,4]
[349089910,1736964710884,-500.0,0.00043013,4]
[349089911,1736964710893,-500.0,0.00043013,4]
[349089912,1736964710903,-444.97464702,0.00043013,4]
[349089913,1736964710912,-2360.74,0.00043039,4]
[349089914,1736964710922,-2360.75,0.00043039,4]
[349089915,1736964710931,-11051.94715168,0.0004304,31]
[349089916,1736964710943,-432.0,0.0004304,31]
[349089917,1736964710954,-14678.25,0.0004304,31]
[349089918,1736964710967,-683.665,0.0004304,31]
[349089919,1736964711100,-1359.09240663,0.00035099,2]
[349089920,1736964711109,-250.0,0.00042045,120]
[349089921,1736964711119,-500.0,0.00043013,4]
[349089922,1736964711128,-152.39516577,0.00043013,4]
[349089923,1736964711141,-347.60483423,0.00043013,4]
[349089924,1736964711151,-500.0,0.00043013,4]
[349089925,1736964711159,-500.0,0.00043013,4]
[349089926,1736964711169,-157.95278947,0.00043013,4]
[349089927,1736964711180,-342.04721053,0.00043013,4]
[349089928,1736964711190,-2773.30281924,0.0004304,31]
[349089929,1736964711234,-363.69184163,0.0004304,31]
[349089930,1736964711246,-47892.12870886,0.0004304,31]
[349089931,1736964711261,-992.8819,0.0004304,31]
[349089932,1736964711274,-44517.38766634,0.0004304,31]
[349089933,1736964711318,-2402.9,0.0004304,31]
[349089935,1736965238715,150.0,0.00029,120]
[349089937,1736965727729,328.24242784,8e-05,2]
[349089938,1736965755915,-175.55,0.00010137,2]
[349089943,1736965832392,-300.0,0.00010998,2]
[349089944,1736965832403,-150.0,0.00010998,2]
[349089945,1736965832412,-10548.0,0.00010999,2]
[349089949,1736965832460,-961.67907138,0.00010999,2]
[349089950,1736965832472,-1085.11703637,0.00010999,2]
[349089951,1736965832525,-14554.97578827,0.00010999,2]
[349089952,1736965832536,-2130.20103713,0.00010999,2]
[349089953,1736965832580,-299.31619046,0.00010999,2]
[349089954,1736965832686,-8848.09248312,0.00010999,2]
[349089955,1736965832696,-41161.26442615,0.00011,2]
[349089956,1736965832705,-31993.46511492,0.00011,2]
[349089957,1736965833593,783.97,0.00026296,120]
[349089962,1736965833833,783.97,0.00029218,120]
[349089971,1736965838256,-299.37950016,0.00011,2]
[349089972,1736965838268,-480.58,0.00011,2]
[349089973,1736965838280,-2829.91723832,0.00011,2]
[349089974,1736965838421,-831.24958038,0.00011,2]
[349089975,1736965838434,-1711.94088374,0.00011,2]
[349089976,1736965838481,-739.0035086,0.00011,2]
[349089977,1736965838490,-550.0,0.00011,2]
[349089978,1736965838500,-40522.23951188,0.00011,2]
[349089979,1736965838511,-1269.99759,0.00011,2]
[349089980,1736965838522,-2388.6000052,0.00011,2]
[349089981,1736965838540,-288.9699825,0.00011,2]
[349089982,1736965838598,-1256.79190609,0.00011,2]
[349089985,1736965838611,-1396.38435972,0.00011,2]
[349089987,1736965838623,-978.45893622,0.00011,2]
[349090176,1736965840653,-800.89909356,0.00011,2]
[349090178,1736965840665,-178499.67469809,0.00011,2]
[349090180,1736965840674,-270.48707947,0.00014,2]
[349090182,1736965840684,-3959.18068581,0.00014,2]
[349090184,1736965840694,-18049.85774458,0.0001951,2]
[349090200,1736965840845,-4324.30350397,0.0001951,2]
[349090202,1736965840856,-1338.70199457,0.0001961,2]
[349090205,1736965840872,-1942.03783672,0.0001961,2]
[349090207,1736965840883,-3413.19560706,0.000198,2]
[349090209,1736965840894,-135.44704406,0.0001997,2]
[349090211,1736965840905,-378.55295594,0.0001997,2]
[349090213,1736965840915,-1465.20971471,0.0002,2]
[349090215,1736965840925,-2064.03030936,0.0002,2]
[349090217,1736965840937,-669.92874241,0.0002,2]
[349090219,1736965840949,-41763.39411145,0.0002,2]
[349090221,1736965840958,-500.0,0.0002008,2]
[349090223,1736965840968,-150.95800678,0.0002008,2]
[349090225,1736965840978,-204.45434116,0.0002008,2]
[349090227,1736965840987,-151.91118178,0.0002054,2]
[349090229,1736965840997,-1000.0,0.00020628,2]
[349090231,1736965841007,-20198.38133584,0.00021001,2]
[349090233,1736965841017,-332.72907122,0.00021001,2]
[349090235,1736965841027,-13219.77195177,0.00021103,2]
[349090237,1736965841038,-4971.74782959,0.00021103,2]
[349090242,1736965841078,-119623.00837081,0.00021103,2]
[349090245,1736965841098,-4959.45,0.00021103,2]
[349090247,1736965841111,-13201.90983459,0.00021103,2]
[349090259,1736965843428,-746.82880128,0.00021103,2]
[349090260,1736965843718,-42601.03890674,0.00021103,2]
[349090261,1736965843727,-1210.0,0.00021103,2]
[349090262,1736965843737,-694.63091261,0.00021103,2]
[349090263,1736965843747,-343.99412766,0.00021103,2]
[349090264,1736965843756,-752.21968333,0.00021103,2]
[349090265,1736965843765,-1501.93858076,0.00021103,2]
[349090266,1736965843775,-1016.82726174,0.00021103,2]
[349090267,1736965843784,-5119.92163149,0.00021103,2]
[349090268,1736965843794,-2424.88324144,0.00021103,2]
[349090269,1736965843803,-212936.64865844,0.00021103,2]
[349090270,1736965843812,-5011.44322286,0.00021103,2]
[349090271,1736965843822,-246.09000477,0.00021103,2]
[349090272,1736965843831,-162.37250234,0.00021103,2]
[349090274,1736965843841,-1246.31002828,0.00021103,2]
[349090275,1736965843854,-7625.00719198,0.00021103,2]
[349090276,1736965843863,-3000.12720923,0.00021103,2]
[349090277,1736965843873,-1028.73318026,0.00021103,2]
[349090278,1736965843882,-4043.47249311,0.00021103,2]
[349090279,1736965843893,-587.53214091,0.00021103,2]
[349090280,1736965843902,-212798.1421323,0.00021103,120]
[349090281,1736965843911,-9126.24368414,0.00021103,2]
[349090282,1736965843921,-1295.59630668,0.00021103,2]
[349090283,1736965843931,-3379.21846156,0.00021103,2]
[349090284,1736965843940,-7682.86183205,0.00021103,2]
[349090285,1736965843950,-12680.8905125,0.00021103,2]
[349090286,1736965843959,-1898.40666784,0.00021103,2]
[349090287,1736965843968,-181.86142549,0.00021103,2]
[349090288,1736965843977,-643.0,0.00021103,2]
[349090289,1736965843987,-958.67726348,0.00021103,2]
[349090290,1736965843996,-9528.03986207,0.00021103,2]
[349090291,1736965844006,-25045.74390555,0.00021103,2]
[349090292,1736965844016,-566.22881526,0.00021103,2]
[349090293,1736965844026,-1815.67877414,0.00021103,2]
[349090294,1736965844035,-3206.07529981,0.00021103,2]
[349090295,1736965844044,-173.36143323,0.00021103,2]
[349090296,1736965844054,-7004.43448184,0.00021103,2]
[349090297,1736965844063,-50934.83219764,0.00021103,2]
[349090298,1736965844219,-550.0,0.00021103,2]
[349090299,1736965844229,-1449.55938137,0.00021103,2]
[349090300,1736965844239,-996.43934847,0.00021103,2]
[349090301,1736965844248,-943.64026976,0.00021103,2]
[349090302,1736965844258,-10581.93589984,0.00021103,2]
[349090303,1736965844267,-167734.06099698,0.00021103,2]
[349090304,1736965844277,-14772.04415451,0.00021103,2]
[349090305,1736965844286,-226.25227583,0.00021103,2]
[349090306,1736965844296,-171.70709117,0.00021103,2]
[349090307,1736965844306,-18331.9221163,0.00021103,2]
[349090308,1736965844315,-6000.0,0.00021103,2]
[349090309,1736965844325,-1453.22180003,0.00021103,2]
[349090310,1736965844334,-1021.28618183,0.00021103,2]
[349090311,1736965844344,-4792.19169669,0.00021103,2]
[349090312,1736965844354,-556.65862173,0.00021103,2]
[349090313,1736965844364,-150.0,0.00021103,2]
[349090314,1736965844374,-449.999999,0.00021103,2]
[349090315,1736965844384,-9523.94452042,0.00021103,2]
[349090316,1736965844393,-619.0809873,0.00021103,2]
[349090317,1736965844403,-212.22529125,0.00021103,2]
[349090318,1736965844414,-162316.27190206,0.00021103,2]
[349090319,1736965844423,-444.59525155,0.00021103,2]
[349090320,1736965844433,-1055.05319314,0.00021103,2]
[349090321,1736965844443,-21033.66092921,0.00021103,2]
[349090322,1736965844452,-2500.0,0.00021103,2]
[349090323,1736965844462,-572.79974891,0.00021103,2]
[349090324,1736965844472,-1098.14599186,0.00021103,2]
[349090325,1736965844482,-532.86428221,0.00021103,2]
[349090326,1736965844492,-422.07411302,0.00021103,2]
[349090327,1736965844502,-397638.99859285,0.00021103,2]
[349090328,1736965844512,-902.04629363,0.00021103,2]
[349090329,1736965844523,-5413.59354013,0.00021103,2]
[349090330,1736965844533,-476.18835768,0.00021103,2]
[349090331,1736965844543,-168.32878478,0.00021103,2]
[349090332,1736965844552,-1568.2899508,0.00021103,2]
[349090333,1736965844562,-2935.05656685,0.00021103,2]
[349090334,1736965844572,-19264.29952525,0.00021103,2]
[349090335,1736965844581,-41432.19296991,0.00021103,2]
[349090336,1736965844591,-541.43594729,0.00021103,2]
[349090337,1736965844604,-4950.61808762,0.00021103,2]
[349090338,1736965844614,-5138.25469288,0.00021103,2]
[349090339,1736965844624,-3504.82880866,0.00021103,2]
[349090340,1736965844634,-360.51323955,0.00021103,2]
[349090341,1736965844645,-2179.59152502,0.00021103,2]
[349090342,1736965844655,-280.36138021,0.00021103,2]
[349090343,1736965844664,-576.33288931,0.00021103,2]
[349090344,1736965844674,-14595.71789142,0.00021103,2]
[349090345,1736965844684,-1815.08659284,0.00021103,2]
[349090346,1736965844694,-787.44492521,0.00021103,2]
[349090347,1736965844704,-1829.74513388,0.00021103,2]
[349090348,1736965844714,-13898.13665787,0.00021103,2]
[349090349,1736965844724,-217.70961678,0.00021103,2]
[349090350,1736965844735,-10075.26526137,0.00021103,2]
[349090351,1736965844744,-4437.77478709,0.00021103,2]
[349090352,1736965844754,-279.0,0.00021103,2]
[349090353,1736965844764,-1555.82084564,0.00021103,2]
[349090354,1736965844774,-5324.2895448,0.00021103,2]
[349090355,1736965844784,-200.32226804,0.00021103,2]
[349090356,1736965844793,-494.56334742,0.00021103,2]
[349090357,1736965844804,-279.27591892,0.00021103,2]
[349090358,1736965844814,-3001.70422634,0.00021103,2]
[349090359,1736965844824,-1000.83816907,0.00021103,2]
[349090360,1736965844834,-162.91,0.00021103,2]
[349090361,1736965844844,-1185.86957483,0.00021103,2]
[349090362,1736965844856,-219.8,0.00021183,2]
[349090363,1736965844866,-500.0,0.0002163,2]
[349090364,1736965844875,-22374.16124853,0.00022113,2]
[349090365,1736965844885,-42054.60791077,0.00023,2]
[349090366,1736965844903,-28671.88283914,0.00023,2]
[349090378,1736965846418,-836.43692123,0.00023,2]
[349090379,1736965846617,-17469.1008,0.00023,2]
[349090485,1736966212708,118282.06,0.0003,30]
[349090496,1736966225116,100000.0,0.00025,120]
[349090502,1736966236714,150000.0,0.00024,30]
[349090503,1736966254802,158.06,0.00010137,2]
[349090505,1736966315239,197.4240061,0.00023,120]
[349090560,1736966954172,-158.06,0.00019198,2]
[349090561,1736966954195,-3989.494138,0.00022094,2]
[349090570,1736967031697,-5958.505862,0.00022094,2]
[349090571,1736967031707,-228.6967,0.000229,2]
[349090572,1736967031719,-17899.32899886,0.000229,2]
[349090573,1736967031729,-1053.057,0.00022999,2]
[349090574,1736967031739,-466.26471362,0.00022999,2]
[349090575,1736967031749,-255.0,0.00022999,2]
[349090576,1736967031760,-279722.35553047,0.00023,2]
[349090577,1736967031772,-433.967,0.00023,2]
[349090578,1736967031784,-796.32399158,0.00023,2]
[349090579,1736967032052,-62154.97655848,0.00023,2]
[349090580,1736967032063,-178769.41945063,0.00023,2]
[349090581,1736967032073,-3000.0,0.00023,2]
[349090582,1736967032083,-783.97,0.00023374,2]
[349090583,1736967032093,-1406.0,0.000239,3]
[349090584,1736967032103,-58903.09704351,0.00024,2]
[349090585,1736967032112,-198.38,0.00027264,2]
[349090586,1736967032122,-3000.0,0.00028,2]
[349090587,1736967032131,-258.05,0.00028133,2]
[349090588,1736967032143,-312.80282956,0.00028156,2]
[349090589,1736967032152,-158.06,0.00028258,2]
[349090591,1736967032161,-150.0,0.00028295,2]
[349090592,1736967032171,-401.28,0.00028399,120]
[349090594,1736967032180,-250.0,0.00028855,2]
[349090597,1736967032191,-250.0,0.00028895,2]
[349090598,1736967032200,-21924.79,0.00029279,2]
[349090600,1736967032210,-500.0,0.00029506,2]
[349090602,1736967032219,-198.38,0.00029527,2]
[349090604,1736967032229,-150.30221,0.000302,120]
[349090606,1736967032238,-1000.0,0.00030486,2]
[349090608,1736967032248,-2751.0,0.00030703,120]
[349090610,1736967032261,-150.0,0.00030721,2]
[349090612,1736967032270,-250.0,0.00030721,2]
[349090614,1736967032279,-817.14,0.00030896,2]
[349090616,1736967032289,-281.81,0.00031101,2]
[349090618,1736967032298,-5633.62,0.00031395,2]
[349090620,1736967032307,-349.63,0.00031613,2]
[349090622,1736967032316,-198.38,0.00031791,2]
[349090624,1736967032326,-401.28,0.00031948,120]
[349090626,1736967032338,-18178.5432022,0.00031959,2]
[349090628,1736967032349,-783.97,0.0003214,120]
[349090630,1736967032358,-3000.0,0.00033,2]
[349090632,1736967032367,-312.80282956,0.00033238,2]
[349090634,1736967032378,-198.38,0.00034055,2]
[349090636,1736967032389,-18178.5432022,0.00034156,2]
[349090638,1736967032398,-1000.0,0.00034297,2]
[349090640,1736967032408,-150.0,0.00034548,10]
[349090642,1736967032418,-200.0,0.00034734,2]
[349090644,1736967032429,-783.97,0.00035062,120]
[349090646,1736967032439,-500.0,0.00035446,2]
[349090648,1736967032449,-401.28,0.00035498,120]
[349090651,1736967032463,-198.38,0.00036319,2]
[349090655,1736967032474,-18178.5432022,0.00036352,2]
[349090657,1736967032483,-2040.0,0.00037,117]
[349090661,1736967032494,-158.06,0.00037319,2]
[349090664,1736967032503,-23900.0,0.00037859,2]
[349090667,1736967032513,-3000.0,0.00038,2]
[349090668,1736967032523,-1000.0,0.00038107,2]
[349090670,1736967032532,-312.80282956,0.00038319,2]
[349090672,1736967032541,-18178.5432022,0.00038548,2]
[349090674,1736967032551,-198.38,0.00038583,2]
[349090676,1736967032561,-401.28,0.00039048,120]
[349090678,1736967032570,-4490.2,0.00039423,117]
[349090681,1736967032580,-463.71378495,0.000399,3]
[349090683,1736967032590,-500.00326576,0.0004,2]
[349090685,1736967032600,-1000.2959913,0.0004,120]
[349090687,1736967032610,-18178.5432022,0.00040744,15]
[349090689,1736967032619,-198.38,0.00040847,2]
[349090691,1736967032629,-155.27613787,0.00041,50]
[349090693,1736967032640,-153.0,0.00041067,2]
[349090695,1736967032649,-153.0,0.00041072,2]
[349090696,1736967032659,-153.0,0.00041079,2]
[349090698,1736967032669,-4898.4,0.00041846,117]
[349090700,1736967032678,-175.55,0.00041849,2]
[349090702,1736967032688,-1000.0,0.00041918,2]
[349090704,1736967032698,-7443.96774683,0.00042,120]
[349090706,1736967032707,-251.9532916,0.00042152,4]
[349090708,1736967032716,-255.79747065,0.00042173,30]
[349090710,1736967032726,-401.28,0.00042598,120]
[349090712,1736967032736,-121523.76070564,0.00042633,120]
[349090714,1736967032746,-200.38821308,0.000427,2]
[349090716,1736967032755,-227336.23,0.0004291,6]
[349090718,1736967032764,-178.24375917,0.00042912,17]
[349090720,1736967032774,-175.62851905,0.00042913,9]
[349090722,1736967032783,-174.49417444,0.00042913,2]
[349090724,1736967032793,-185.73316756,0.00042913,2]
[349090726,1736967032802,-196.76777732,0.0004294,120]
[349090728,1736967032811,-18178.5432022,0.0004294,15]
[349090730,1736967032820,-9759.0,0.00042986,120]
[349090732,1736967032830,-16000.89,0.00043,31]
[349090734,1736967032839,-500.0,0.00043,31]
[349090736,1736967032848,-5000.94648766,0.00043,30]
[349090738,1736967032857,-3000.0,0.00043,2]
[349090739,1736967032866,-500.0,0.00043011,31]
[349090741,1736967032877,-7156.4203425,0.00043011,30]
[349090744,1736967032888,-357.0,0.00043012,7]
[349090745,1736967032898,-300.0,0.00043012,30]
[349090748,1736967032908,-252298.4,0.00043012,120]
[349090749,1736967032917,-1061.29224117,0.00043012,60]
[349090751,1736967032926,-500.0,0.00043012,7]
[349090753,1736967032936,-2500.0,0.00043012,120]
[349090755,1736967032945,-479099.58945234,0.00043013,35]
[349090757,1736967032954,-731.66196576,0.00043013,30]
[349090759,1736967032964,-151.0,0.00043013,7]
[349090761,1736967032973,-629.22723409,0.00043013,4]
[349090762,1736967032982,-500.0,0.00043013,4]
[349090763,1736967032992,-232.37858586,0.00043013,4]
[349090764,1736967033001,-195.49704332,0.00043013,4]
[349090765,1736967033011,-500.0,0.00043013,4]
[349090767,1736967033021,-500.0,0.00043013,4]
[349090770,1736967033030,-503.08801832,0.00043013,4]
[349090771,1736967033040,-500.0,0.00043013,4]
[349090773,1736967033049,-500.0,0.00043013,4]
[349090776,1736967033059,-360.1567603,0.00043013,4]
[349090778,1736967033069,-500.0,0.00043013,4]
[349090780,1736967033080,-500.0,0.00043013,4]
[349090782,1736967033090,-500.0,0.00043013,4]
[349090784,1736967033100,-642.7739409,0.00043013,2]
[349090786,1736967033109,-500.0,0.00043013,4]
[349090788,1736967033119,-176.47547056,0.00043013,4]
[349090790,1736967033131,-500.18474801,0.00043013,4]
[349090792,1736967033142,-500.37763053,0.00043013,4]
[349090794,1736967033151,-268.367312,0.00043013,4]
[349090796,1736967033161,-501.64746135,0.00043013,4]
[349090798,1736967033171,-500.48308501,0.00043013,4]
[349090800,1736967033181,-502.41368314,0.00043013,4]
[349090802,1736967033191,-160.60465974,0.00043013,2]
[349090804,1736967033201,-500.0,0.00043013,4]
[349090806,1736967033211,-500.99990989,0.00043013,4]
[349090808,1736967033221,-500.57460819,0.00043013,4]
[349090810,1736967033231,-502.23657365,0.00043013,4]
[349090812,1736967033240,-501.30616063,0.00043013,4]
[349090814,1736967033250,-500.90053633,0.00043013,2]
[349090816,1736967033263,-500.47326493,0.00043013,4]
[349090818,1736967033273,-501.95728721,0.00043013,4]
[349090820,1736967033282,-501.56075317,0.00043013,4]
[349090822,1736967033292,-500.0,0.00043013,4]
[349090824,1736967033302,-500.0,0.00043013,4]
[349090826,1736967033313,-501.76178357,0.00043013,4]
[349090828,1736967033322,-501.8942469,0.00043013,4]
[349090830,1736967033332,-500.0,0.00043013,4]
[349090832,1736967033341,-304.8463421,0.00043013,4]
[349090834,1736967033352,-502.2697918,0.00043013,4]
[349090836,1736967033361,-500.83039609,0.00043013,4]
[349090838,1736967033372,-500.0,0.00043013,4]
[349090840,1736967033382,-211.83412556,0.00043013,4]
[349090842,1736967033392,-504.66630564,0.00043013,4]
[349090844,1736967033403,-500.0,0.00043013,4]
[349090846,1736967033413,-500.0,0.00043013,4]
[349090848,1736967033422,-500.0,0.00043013,4]
[349090868,1736967033620,-500.0,0.00043013,4]
[349090870,1736967033630,-500.0,0.00043013,4]
[349090872,1736967033641,-500.0,0.00043013,4]
[349090874,1736967033651,-500.0,0.00043013,4]
[349090876,1736967033662,-500.0,0.00043013,4]
[349090878,1736967033672,-500.0,0.00043013,4]
[349090880,1736967033682,-500.0,0.00043013,4]
[349090882,1736967033692,-500.0,0.00043013,4]
[349090884,1736967033701,-500.0,0.00043013,4]
[349090886,1736967033711,-500.0,0.00043013,4]
[349090889,1736967033721,-402.74108208,0.00043013,4]
[349090891,1736967033731,-500.0,0.00043013,4]
[349090892,1736967033740,-500.0,0.00043013,4]
[349090894,1736967033750,-500.0,0.00043013,4]
[349090896,1736967033760,-500.0,0.00043013,4]
[349090898,1736967033769,-500.0,0.00043013,4]
[349090901,1736967033779,-500.0,0.00043013,4]
[349090902,1736967033788,-500.0,0.00043013,4]
[349090904,1736967033798,-500.0,0.00043013,4]
[349090907,1736967033808,-500.0,0.00043013,4]
[349090909,1736967033818,-500.0,0.00043013,4]
[349090911,1736967033828,-500.0,0.00043013,4]
[349090913,1736967033838,-500.0,0.00043013,4]
[349090915,1736967033847,-500.0,0.00043013,4]
[349090916,1736967033857,-500.0,0.00043013,4]
[349090918,1736967033866,-500.0,0.00043013,4]
[349090921,1736967033876,-500.0,0.00043013,4]
[349090923,1736967033886,-500.0,0.00043013,4]
[349090924,1736967033896,-500.0,0.00043013,4]
[349090927,1736967033906,-500.0,0.00043013,4]
[349090929,1736967033916,-500.0,0.00043013,4]
[349090931,1736967033926,-500.0,0.00043013,4]
[349090933,1736967033935,-500.0,0.00043013,4]
[349090935,1736967033945,-500.0,0.00043013,4]
[349090937,1736967033955,-500.0,0.00043013,4]
[349090939,1736967033966,-500.0,0.00043013,4]
[349090941,1736967033976,-500.0,0.00043013,4]
[349090942,1736967033986,-500.0,0.00043013,4]
[349090945,1736967033996,-500.0,0.00043013,4]
[349090947,1736967034006,-500.0,0.00043013,4]
[349090948,1736967034016,-500.0,0.00043013,4]
[349090951,1736967034026,-500.0,0.00043013,4]
[349090953,1736967034036,-500.0,0.00043013,4]
[349090954,1736967034045,-500.0,0.00043013,4]
[349090956,1736967034055,-500.0,0.00043013,4]
[349090958,1736967034065,-500.0,0.00043013,4]
[349090961,1736967034075,-500.0,0.00043013,4]
[349090963,1736967034085,-500.0,0.00043013,4]
[349090964,1736967034095,-500.0,0.00043013,4]
[349090966,1736967034106,-500.0,0.00043013,4]
[349090968,1736967034115,-500.0,0.00043013,4]
[349090970,1736967034126,-500.0,0.00043013,4]
[349090972,1736967034136,-268.18405524,0.00043013,4]
[349090974,1736967034149,-500.0,0.00043013,4]
[349090976,1736967034160,-500.0,0.00043013,4]
[349090978,1736967034171,-500.0,0.00043013,4]
[349090980,1736967034181,-500.0,0.00043013,4]
[349090981,1736967034191,-500.0,0.00043013,4]
[349090982,1736967034201,-500.0,0.00043013,4]
[349090983,1736967034211,-500.0,0.00043013,4]
[349090984,1736967034222,-500.0,0.00043013,4]